bitfinex/quotes_SOLUSD_20251202
["timestamp","ask_amount","ask_price","bid_price","bid_amount"]
[1764685254047,3.65183362,131.38,131.36,0.67]
[1764685254250,3.65183362,131.38,131.36,8.28260382]
[1764685254420,3.65183362,131.37,131.35,7.61305523]
[1764685254626,3.65183362,131.36,131.34,22.87369905]
[1764685254827,3.65183362,131.36,131.33,0.67]
[1764685255550,0.68,131.38,131.33,0.67]
[1764685255724,3.65183362,131.36,131.33,0.67]
[1764685256132,0.68,131.39,131.34,25.11880892]
[1764685256343,3.65183362,131.38,131.34,24.828864]
[1764685256624,3.65183362,131.37,131.35,0.67]
[1764685256824,3.65183362,131.36,131.34,24.828864]
[1764685257023,3.65183362,131.36,131.34,25.498864]
[1764685257339,3.65183362,131.37,131.34,25.498864]
[1764685257543,3.65183362,131.37,131.34,16.308864]
[1764685257745,3.65183362,131.37,131.25,0.67]
[1764685257746,3.65183362,131.35,131.25,0.67]
[1764685257946,3.65183362,131.3,131.24,0.67]
[1764685258138,16.13614623,131.3,131.24,22.88765973]
[1764685258333,20.46797985,131.3,131.24,30.50692972]
[1764685258733,20.46797985,131.3,131.23,24.59901077]
[1764685258947,4.33183362,131.29,131.23,24.59901077]
[1764685259249,4.33183362,131.29,131.22,7.620738]
[1764685259438,3.65183362,131.27,131.23,7.62013171]
[1764685259855,4.33183362,131.27,131.23,7.62013171]
[1764685260051,11.94972041,131.27,131.23,7.62013171]
[1764685261445,11.94972041,131.27,131.21,17.178864]
[1764685262029,0.68,131.32,131.26,8.48805742]
[1764685262234,3.65183362,131.31,131.26,8.48805742]
[1764685262446,3.65183362,131.3,131.27,0.67]
[1764685262749,3.65183362,131.29,131.27,0.67]
[1764685263460,3.65183362,131.29,131.27,7.61751695]
[1764685264841,3.65183362,131.29,131.27,8.28751695]
[1764685265159,4.33183362,131.3,131.27,8.28751695]
[1764685265858,0.68,131.29,131.26,7.81828425]
[1764685266060,3.65183362,131.27,131.26,7.81828425]
[1764685266364,0.68,131.29,131.26,7.81828425]
[1764685266535,3.65183362,131.29,131.27,0.67]
[1764685266735,3.65183362,131.3,131.27,0.67]
[1764685267157,4.33183362,131.3,131.26,7.81828425]
[1764685267449,3.65183362,131.29,131.26,8.48828425]
[1764685267834,4.33183362,131.3,131.26,8.48828425]
[1764685268437,3.65183362,131.29,131.26,8.48828425]
[1764685268936,3.65183362,131.29,131.26,48.68828425]
[1764685269332,27.33047448,131.33,131.27,0.67]
[1764685269529,3.65183362,131.33,131.28,12.46177854]
[1764685269733,7.61266747,131.36,131.31,19.96069762]
[1764685269958,3.65183362,131.33,131.31,16.308864]
[1764685270165,0.68,131.35,131.29,40.2]
[1764685270338,3.65183362,131.32,131.29,56.508864]
[1764685270738,3.65183362,131.31,131.29,56.508864]
[1764685271147,7.61266747,131.36,131.29,56.508864]
[1764685271362,3.65183362,131.34,131.31,7.61556621]
[1764685271657,3.65183362,131.37,131.32,28.77064254]
[1764685271879,3.65183362,131.37,131.32,69.67064254]
[1764685272083,4.37183362,131.38,131.33,4.35183362]
[1764685272361,4.37183362,131.38,131.33,3.65183362]
[1764685272532,3.05894711,131.38,131.34,0.7]
[1764685273185,3.05894711,131.37,131.33,0.7]
[1764685273491,3.05894711,131.37,131.34,7.6138267]
[1764685273857,0.72,131.39,131.34,26.64839347]
[1764685274077,0.72,131.41,131.35,3.03894711]
[1764685274383,2.33894711,131.38,131.35,0.7]
[1764685274683,2.33894711,131.37,131.34,49.51860501]
[1764685274890,2.33894711,131.35,131.31,19.03768306]
[1764685275050,8.52,131.38,131.31,27.55768306]
[1764685275255,0.72,131.37,131.31,44.56654706]
[1764685275449,2.33894711,131.36,131.32,26.65237571]
[1764685275663,2.33894711,131.36,131.32,27.35237571]
[1764685275854,2.33894711,131.36,131.33,0.7]
[1764685276072,9.24,131.38,131.33,0.7]
[1764685276267,2.33894711,131.36,131.32,26.65237571]
[1764685276464,2.33894711,131.34,131.32,7.61490998]
[1764685276670,2.33894711,131.33,131.32,7.61490998]
[1764685277066,2.33894711,131.34,131.31,7.61537306]
[1764685277459,3.05894711,131.34,131.31,7.61537306]
[1764685278595,0.72,131.34,131.31,7.61537306]
[1764685278891,3.05894711,131.34,131.31,7.61537306]
[1764685279299,3.05894711,131.34,131.31,26.6542886]
[1764685279462,0.72,131.34,131.31,26.6542886]
[1764685280508,3.05894711,131.34,131.31,26.6542886]
[1764685281107,2.33894711,131.35,131.31,27.3542886]
[1764685281410,7.61269687,131.36,131.32,8.31456076]
[1764685281780,8.33269687,131.36,131.33,0.7]
[1764685281980,10.67164398,131.36,131.32,8.31456076]
[1764685282305,3.05894711,131.35,131.31,26.65448175]
[1764685282507,2.33894711,131.34,131.31,26.65448175]
[1764685282806,3.05894711,131.34,131.31,66.85448175]
[1764685284202,2.33894711,131.33,131.31,66.85448175]
[1764685284390,2.33894711,131.32,131.31,47.81556621]
[1764685284709,3.05894711,131.32,131.31,47.81556621]
[1764685284888,3.05894711,131.32,131.31,40.2]
[1764685285220,3.05894711,131.32,131.29,7.61617557]
[1764685285378,2.33894711,131.3,131.29,7.61617557]
[1764685285782,3.05894711,131.3,131.29,7.61617557]
[1764685286508,3.05894711,131.3,131.28,7.61730637]
[1764685287712,2.33894711,131.29,131.28,7.61730637]
[1764685287923,3.05894711,131.29,131.28,7.61730637]
[1764685288918,2.33894711,131.29,131.27,7.61788679]
[1764685289106,2.33894711,131.3,131.27,26.66260378]
[1764685289307,2.33894711,131.3,131.28,0.7]
[1764685289813,2.33894711,131.3,131.27,26.66260378]
[1764685290115,3.05894711,131.3,131.27,26.66260378]
[1764685290325,2.33894711,131.29,131.27,7.61788679]
[1764685290917,2.33894711,131.3,131.28,0.7]
[1764685291118,2.33894711,131.3,131.27,8.31788679]
[1764685291496,2.33894711,131.31,131.28,0.7]
[1764685291701,10.85894711,131.33,131.28,0.7]
[1764685291925,11.57894711,131.33,131.28,40.9]
[1764685292621,3.05894711,131.33,131.29,8.31672633]
[1764685292810,0.72,131.35,131.29,29.69748926]
[1764685293008,7.61092929,131.39,131.31,2.33894711]
[1764685293315,2.33894711,131.36,131.32,0.72]
[1764685293702,3.00894711,131.36,131.32,0.72]
[1764685294412,2.33894711,131.34,131.3,17.32994492]
[1764685294724,2.33894711,131.34,131.31,0.72]
[1764685294927,3.00894711,131.35,131.31,0.72]
[1764685295125,2.33894711,131.36,131.32,8.80994492]
[1764685295303,2.33894711,131.37,131.33,0.72]
[1764685295703,3.00894711,131.37,131.33,0.72]
[1764685296133,2.33894711,131.36,131.33,0.72]
[1764685296311,2.33894711,131.35,131.33,0.72]
[1764685296933,2.33894711,131.35,131.33,8.33403013]
[1764685297105,3.00894711,131.34,131.31,56.508864]
[1764685297423,3.00894711,131.34,131.31,40.2]
[1764685297424,2.33894711,131.32,131.31,40.2]
[1764685297631,2.33894711,131.32,131.29,0.72]
[1764685297632,2.33894711,131.32,131.3,7.61614623]
[1764685298106,0.67,131.33,131.3,8.33614623]
[1764685298300,2.33894711,131.31,131.29,64.12533037]
[1764685298605,2.33894711,131.31,131.29,64.84533037]
[1764685298828,2.33894711,131.31,131.29,48.53646637]
[1764685300234,2.33894711,131.31,131.3,0.72]
[1764685300412,2.33894711,131.32,131.29,48.53646637]
[1764685300614,2.33894711,131.32,131.3,0.72]
[1764685300934,0.67,131.33,131.3,0.72]
[1764685301140,2.33894711,131.32,131.3,0.72]
[1764685302039,2.33894711,131.32,131.3,48.53605426]
[1764685302212,2.33894711,131.32,131.3,47.81605426]
[1764685302413,3.04894711,131.32,131.3,47.81605426]
[1764685302720,2.33894711,131.31,131.3,47.81605426]
[1764685302923,3.04894711,131.31,131.3,40.2]
[1764685303324,3.04894711,131.31,131.3,40.19999999]
[1764685303639,3.04894711,131.31,131.27,7.61779273]
[1764685303640,11.54894711,131.31,131.27,7.61779273]
[1764685303831,2.33894711,131.28,131.27,7.61779273]
[1764685304354,3.04894711,131.28,131.27,7.61779273]
[1764685305237,3.04894711,131.28,131.26,7.8184505]
[1764685305443,2.33894711,131.27,131.26,7.8184505]
[1764685308256,3.04894711,131.27,131.26,0.2]
[1764685308557,10.6668339,131.27,131.26,0.2]
[1764685308721,19.1668339,131.27,131.26,0.2]
[1764685311120,0.71,131.29,131.26,7.81835687]
[1764685311322,2.33894711,131.28,131.26,7.81835687]
[1764685311514,2.33894711,131.27,131.26,7.81835687]
[1764685312250,3.04894711,131.27,131.26,0.2]
[1764685312621,10.6668339,131.27,131.26,0.2]
[1764685312828,3.04894711,131.27,131.26,0.2]
[1764685313828,2.33894711,131.28,131.26,0.2]
[1764685314040,2.33894711,131.28,131.26,8.52846716]
[1764685314453,2.33894711,131.27,131.26,0.2]
[1764685314626,0.71,131.3,131.26,7.81827258]
[1764685314830,2.33894711,131.28,131.26,8.52827258]
[1764685315345,2.33894711,131.27,131.26,7.81827258]
[1764685315656,2.33894711,131.27,131.26,0.2]
[1764685316359,2.33894711,131.28,131.26,0.2]
[1764685316550,2.33894711,131.27,131.26,0.2]
[1764685317139,0.71,131.28,131.26,0.2]
[1764685317342,2.33894711,131.27,131.26,0.2]
[1764685319258,0.71,131.31,131.26,8.52814374]
[1764685319466,2.33894711,131.31,131.26,10.86709085]
[1764685319640,2.33894711,131.31,131.27,0.71]
[1764685320178,2.33894711,131.29,131.26,7.81814374]
[1764685320353,0.71,131.3,131.26,7.81814374]
[1764685320553,2.33894711,131.28,131.26,8.52814374]
[1764685320755,2.33894711,131.29,131.26,8.52814374]
[1764685320951,10.85894711,131.3,131.27,0.71]
[1764685321171,2.33894711,131.29,131.27,0.71]
[1764685321366,10.85894711,131.3,131.27,0.71]
[1764685321548,11.56894711,131.3,131.27,0.71]
[1764685322058,9.23,131.3,131.27,0.71]
[1764685322251,2.33894711,131.29,131.27,0.71]
[1764685322867,3.04894711,131.28,131.26,7.81814374]
[1764685323047,2.33894711,131.27,131.26,7.81814374]
[1764685323248,0.71,131.28,131.26,7.81814374]
[1764685323449,0.71,131.28,131.26,0.2]
[1764685325081,8.5,131.27,131.26,0.2]
[1764685325782,11.54894711,131.27,131.26,0.2]
[1764685326680,9.21,131.27,131.26,0.2]
[1764685326869,11.54894711,131.27,131.26,0.2]
[1764685327065,10.6668339,131.27,131.26,0.2]
[1764685327264,19.1668339,131.27,131.26,0.2]
[1764685327687,8.5,131.27,131.26,0.2]
[1764685327887,2.33894711,131.28,131.26,0.91]
[1764685328112,2.33894711,131.28,131.26,0.2]
[1764685328396,2.33894711,131.27,131.26,0.2]
[1764685328563,2.33894711,131.27,131.26,7.81846716]
[1764685330188,2.33894711,131.27,131.26,0.2]
[1764685330688,8.5,131.28,131.26,0.2]
[1764685330896,2.33894711,131.27,131.26,0.2]
[1764685331063,9.21,131.28,131.26,7.81830954]
[1764685331267,11.54894711,131.28,131.26,7.81830954]
[1764685331883,2.33894711,131.27,131.26,7.81830954]
[1764685332200,7.6165508,131.3,131.26,7.81830954]
[1764685332201,2.33894711,131.29,131.27,0.7]
[1764685332487,2.33894711,131.28,131.26,7.81830954]
[1764685332674,2.33894711,131.28,131.26,8.51830954]
[1764685333401,2.33894711,131.27,131.26,0.2]
[1764685333798,1.33894711,131.27,131.26,0.2]
[1764685334409,3.66078408,131.27,131.26,0.2]
[1764685334708,3.66078408,131.27,131.26,7.81846716]
[1764685334908,12.16078408,131.28,131.26,0.2]
[1764685335088,3.66078408,131.27,131.26,0.9]
[1764685335289,8.5,131.28,131.26,8.51846716]
[1764685335483,12.16078408,131.28,131.26,8.51846716]
[1764685336017,3.66078408,131.27,131.26,0.9]
[1764685336325,3.66078408,131.27,131.26,0.2]
[1764685338408,8.5,131.28,131.26,0.9]
[1764685338716,12.16078408,131.28,131.26,0.9]
[1764685339114,4.34078408,131.27,131.26,0.2]
[1764685339293,9.18,131.28,131.26,0.2]
[1764685339487,3.66078408,131.27,131.26,0.2]
[1764685339692,4.34078408,131.27,131.26,0.2]
[1764685340198,20.45867087,131.27,131.26,0.2]
[1764685344095,8.80994492,131.26,131.21,0.2]
[1764685344296,9.48994492,131.26,131.21,0.2]
[1764685344498,3.66078408,131.22,131.21,0.2]
[1764685344802,12.16078408,131.22,131.21,0.2]
[1764685345190,12.84078408,131.22,131.21,0.2]
[1764685345391,0.68,131.22,131.21,0.2]
[1764685345597,20.46157359,131.22,131.21,0.2]
[1764685348326,24.12235767,131.22,131.21,0.2]
[1764685349034,15.62235767,131.22,131.21,0.2]
[1764685349330,51.98427637,131.22,131.2,0.2]
[1764685349500,4.34078408,131.21,131.2,0.2]
[1764685350207,26.67682925,131.2,131.14,0.2]
[1764685350411,3.66078408,131.15,131.14,0.2]
[1764685350732,12.16078408,131.15,131.14,0.2]
[1764685351224,8.5,131.15,131.14,0.9]
[1764685351413,0.68,131.18,131.14,8.52543846]
[1764685351414,3.66078408,131.17,131.14,8.52543846]
[1764685351617,8.5,131.16,131.15,0.7]
[1764685352327,0.68,131.21,131.16,16.308864]
[1764685352625,38.09332563,131.26,131.19,3.66078408]
[1764685352626,3.66078408,131.24,131.19,3.66078408]
[1764685352808,3.66078408,131.23,131.18,19.96964808]
[1764685353016,3.66078408,131.23,131.19,0.69]
[1764685353829,3.66078408,131.23,131.2,7.62195121]
[1764685354132,0.68,131.25,131.2,26.67682925]
[1764685354133,3.66078408,131.24,131.2,26.67682925]
[1764685354337,3.66078408,131.23,131.21,0.69]
[1764685355537,3.66078408,131.24,131.21,0.69]
[1764685355736,3.66078408,131.24,131.21,8.31082007]
[1764685356054,3.66078408,131.23,131.21,0.69]
[1764685356931,12.84078408,131.23,131.19,0.69]
[1764685357449,12.16078408,131.23,131.19,0.69]
[1764685357838,12.16078408,131.23,131.2,7.62195121]
[1764685358471,12.16078408,131.23,131.2,8.31195121]
[1764685359469,8.5,131.23,131.2,8.31195121]
[1764685359626,12.16078408,131.23,131.2,7.62195121]
[1764685359821,12.16078408,131.23,131.17,7.62369444]
[1764685359822,3.66078408,131.21,131.17,7.62369444]
[1764685360052,8.30115416,131.22,131.17,8.31369444]
[1764685360053,3.66078408,131.2,131.17,8.31369444]
[1764685360265,3.66078408,131.2,131.18,0.69]
[1764685360627,3.66078408,131.21,131.18,0.69]
[1764685361373,3.66078408,131.21,131.18,8.31271771]
[1764685361660,3.66078408,131.21,131.19,0.69]
[1764685361957,8.30115416,131.22,131.19,0.69]
[1764685362164,3.66078408,131.21,131.19,0.69]
[1764685362376,4.34078408,131.22,131.19,0.69]
[1764685362654,12.84078408,131.22,131.19,0.69]
[1764685363869,12.16078408,131.22,131.19,8.31206904]
[1764685364081,12.83078408,131.22,131.19,8.31206904]
[1764685364777,4.33078408,131.22,131.19,8.31206904]
[1764685364953,12.83078408,131.22,131.19,8.31206904]
[1764685365154,4.33078408,131.22,131.19,8.31206904]
[1764685365361,12.16078408,131.22,131.19,8.31206904]
[1764685366377,12.83078408,131.22,131.19,8.31206904]
[1764685368389,12.83078408,131.22,131.18,27.3797462]
[1764685368768,12.16078408,131.22,131.19,0.7]
[1764685369386,12.83078408,131.22,131.19,0.7]
[1764685369968,3.66078408,131.21,131.19,0.7]
[1764685370372,8.5,131.22,131.2,7.62195121]
[1764685370777,8.5,131.22,131.2,8.32195121]
[1764685371172,12.16078408,131.23,131.2,7.62195121]
[1764685371371,12.16078408,131.23,131.21,0.7]
[1764685371861,7.621,131.35,131.21,0.7]
[1764685371862,0.67,131.27,131.21,4.36078408]
[1764685372189,12.16078408,131.26,131.21,4.36078408]
[1764685372388,12.16078408,131.26,131.23,7.62020879]
[1764685372772,12.16078408,131.26,131.23,8.32020879]
[1764685372976,12.16078408,131.27,131.24,0.7]
[1764685373167,16.78755425,131.28,131.24,0.7]
[1764685373368,3.66078408,131.27,131.24,0.7]
[1764685373867,3.66078408,131.26,131.24,0.7]
[1764685374364,8.28795573,131.27,131.24,0.7]
[1764685374586,3.66078408,131.25,131.2,7.62195121]
[1764685374803,3.66078408,131.24,131.21,0.7]
[1764685375174,12.83078408,131.25,131.21,0.7]
[1764685375772,20.45018158,131.25,131.21,8.3211792]
[1764685375976,20.45018158,131.25,131.22,0.7]
[1764685376171,7.61852536,131.26,131.22,0.7]
[1764685376389,8.5,131.25,131.22,4.36078408]
[1764685376915,12.16078408,131.25,131.21,0.7]
[1764685377192,12.83078408,131.25,131.22,0.7]
[1764685377370,9.17,131.25,131.22,0.7]
[1764685378173,16.78913693,131.25,131.22,0.7]
[1764685378473,16.78913693,131.25,131.22,8.32078586]
[1764685379399,9.17,131.25,131.22,8.32078586]
[1764685379776,16.78910257,131.25,131.22,8.32078586]
[1764685380791,54.39120246,131.3,131.23,0.7]
[1764685381003,0.67,131.34,131.29,3.66078408]
[1764685381294,0.67,131.34,131.3,8.80994492]
[1764685381295,0.67,131.33,131.3,8.80994492]
[1764685381480,4.33078408,131.33,131.28,8.80994492]
[1764685381684,3.66078408,131.32,131.29,0.7]
[1764685381894,4.33078408,131.33,131.29,0.7]
[1764685382098,8.5,131.34,131.29,4.36078408]
[1764685382307,8.5,131.34,131.29,0.7]
[1764685382511,9.17,131.34,131.3,0.7]
[1764685382804,12.83078408,131.34,131.3,0.7]
[1764685383106,9.17,131.34,131.3,0.7]
[1764685383590,9.17,131.34,131.3,8.31557322]
[1764685383906,0.67,131.34,131.3,11.9763573]
[1764685384201,9.17,131.34,131.3,11.9763573]
[1764685384498,9.17,131.34,131.31,11.97630449]
[1764685385206,7.61253341,131.37,131.31,8.31552041]
[1764685385391,4.33078408,131.36,131.32,3.66078408]
[1764685385595,9.17,131.36,131.32,4.36078408]
[1764685385983,9.17,131.36,131.33,4.36078408]
[1764685386201,7.61172854,131.38,131.35,3.66078408]
[1764685386401,3.76078408,131.41,131.36,3.66078408]
[1764685386716,8.5,131.4,131.37,7.61208799]
[1764685387006,9.17,131.4,131.37,7.61208799]
[1764685387376,8.5,131.4,131.37,8.31208799]
[1764685387595,0.1,131.41,131.39,3.66078408]
[1764685387817,0.1,131.41,131.38,4.36078408]
[1764685388410,4.43078408,131.41,131.37,7.61208799]
[1764685388773,0.67,131.4,131.37,7.61208799]
[1764685389081,0.67,131.4,131.34,33.61880892]
[1764685389082,12.16078408,131.39,131.35,7.61280889]
[1764685389607,12.83078408,131.39,131.35,8.31280889]
[1764685389902,9.17,131.39,131.35,8.31280889]
[1764685390082,9.17,131.39,131.35,11.97359297]
[1764685390478,3.66078408,131.37,131.33,0.7]
[1764685390685,8.5,131.36,131.32,7.61498629]
[1764685390884,36.08003893,131.4,131.34,3.66078408]
[1764685391095,0.67,131.38,131.34,3.66078408]
[1764685391298,4.33078408,131.4,131.35,4.36078408]
[1764685391501,8.5,131.39,131.36,11.27314151]
[1764685391703,0.1,131.41,131.37,3.66078408]
[1764685391884,0.82,131.41,131.37,4.38078408]
[1764685392086,10.67567031,131.42,131.37,3.66078408]
[1764685392285,18.28495507,131.42,131.37,0.72]
[1764685393210,8.5,131.41,131.37,4.38078408]
[1764685393381,8.5,131.42,131.38,3.66078408]
[1764685393587,8.5,131.42,131.39,7.61092929]
[1764685393894,8.5,131.42,131.39,8.33092929]
[1764685394204,20.78964808,131.44,131.39,8.33092929]
[1764685394391,8.5,131.43,131.4,0.72]
[1764685394581,8.5,131.43,131.39,7.61092929]
[1764685394777,12.88078408,131.43,131.39,0.72]
[1764685395810,20.48966921,131.43,131.39,0.72]
[1764685396014,3.66078408,131.41,131.37,0.72]
[1764685396313,3.66078408,131.39,131.35,8.33324704]
[1764685396610,2.33892877,131.39,131.35,8.33324704]
[1764685396811,8.5,131.4,131.35,8.33324704]
[1764685396812,10.83892877,131.4,131.36,0.72]
[1764685397017,8.5,131.39,131.36,0.72]
[1764685397606,10.66971134,131.4,131.36,0.72]
[1764685397796,10.83892877,131.4,131.36,8.33237913]
[1764685397996,2.33892877,131.41,131.36,8.33237913]
[1764685398182,10.83892877,131.42,131.37,0.72]
[1764685398988,8.5,131.42,131.37,0.72]
[1764685399303,0.1,131.44,131.39,2.33892877]
[1764685399499,2.43892877,131.44,131.4,7.61035007]
[1764685399688,2.43892877,131.44,131.4,8.33035007]
[1764685400302,2.33892877,131.41,131.37,17.028864]
[1764685400512,5.41373732,131.39,131.37,8.3318593]
[1764685400688,5.41373732,131.38,131.36,7.61264819]
[1764685401089,5.41373732,131.38,131.36,8.33264819]
[1764685401303,5.41373732,131.39,131.36,8.33264819]
[1764685402812,8.33086734,131.4,131.36,8.33264819]
[1764685403108,5.41373732,131.39,131.36,8.33264819]
[1764685403791,8.32861294,131.43,131.37,0.72]
[1764685403993,5.41373732,131.4,131.37,0.72]
[1764685404685,5.41373732,131.38,131.36,7.61264819]
[1764685404886,5.41373732,131.38,131.36,8.33264819]
[1764685405710,5.41373732,131.39,131.36,7.61264819]
[1764685405906,5.41373732,131.39,131.36,8.33264819]
[1764685406103,5.41373732,131.38,131.36,7.61264819]
[1764685406325,5.41373732,131.38,131.34,43.67667958]
[1764685406326,13.91373732,131.38,131.34,43.67667958]
[1764685406496,5.41373732,131.37,131.34,43.67667958]
[1764685407113,9.22,131.38,131.34,43.67667958]
[1764685407306,5.41373732,131.37,131.34,43.67667958]
[1764685407894,0.72,131.41,131.35,0.72]
[1764685408096,5.41373732,131.39,131.35,0.72]
[1764685409121,5.41373732,131.39,131.36,7.61266747]
[1764685409490,5.41373732,131.38,131.36,7.61266747]
[1764685409692,5.41373732,131.38,131.36,8.33266747]
[1764685410003,5.41373732,131.39,131.36,8.33266747]
[1764685410609,5.41373732,131.38,131.36,8.33266747]
[1764685410818,5.41373732,131.38,131.36,7.61266747]
[1764685411326,5.41373732,131.38,131.35,48.53303281]
[1764685411820,5.41373732,131.38,131.35,8.33303281]
[1764685412119,22.24466704,131.39,131.35,8.33303281]
[1764685413017,5.41373732,131.38,131.35,8.33303281]
[1764685414027,5.41373732,131.38,131.36,0.7]
[1764685414201,5.41373732,131.38,131.35,8.31303281]
[1764685414400,5.41373732,131.37,131.35,7.61303281]
[1764685415012,6.13373732,131.38,131.35,8.31303281]
[1764685415341,5.41373732,131.38,131.35,8.31303281]
[1764685415524,16.11092972,131.39,131.36,0.7]
[1764685415525,5.41373732,131.39,131.36,0.7]
[1764685415826,13.91373732,131.39,131.36,0.7]
[1764685416896,13.91373732,131.39,131.36,8.3122475]
[1764685417103,5.41373732,131.38,131.36,8.3122475]
[1764685417514,13.91373732,131.39,131.36,8.3122475]
[1764685418017,5.41373732,131.39,131.36,8.3122475]
[1764685418221,13.91373732,131.39,131.36,8.3122475]
[1764685419143,5.41373732,131.38,131.36,8.3122475]
[1764685419442,5.41373732,131.4,131.37,0.7]
[1764685419613,13.91373732,131.41,131.37,0.7]
[1764685419935,0.1,131.44,131.38,5.41373732]
[1764685420123,13.91373732,131.43,131.37,6.11373732]
[1764685420318,0.1,131.44,131.37,3.03764582]
[1764685420515,2.33764582,131.43,131.38,3.03764582]
[1764685420915,2.33764582,131.43,131.39,0.7]
[1764685421219,2.33764582,131.43,131.4,7.61035007]
[1764685422541,2.33764582,131.43,131.4,8.29035007]
[1764685423237,2.33764582,131.42,131.4,8.29035007]
[1764685424136,2.33764582,131.42,131.4,7.61035007]
[1764685424440,2.33764582,131.42,131.41,0.68]
[1764685424635,2.33764582,131.43,131.41,0.68]
[1764685424935,2.33764582,131.43,131.4,7.61035007]
[1764685425131,2.33764582,131.43,131.4,8.29035007]
[1764685426144,2.33764582,131.42,131.4,7.61035007]
[1764685427338,2.33764582,131.42,131.4,8.29035007]
[1764685428036,7.6091919,131.42,131.39,0.68]
[1764685428240,2.33764582,131.41,131.38,27.318851]
[1764685428444,2.33764582,131.41,131.38,26.638851]
[1764685428623,10.65683772,131.42,131.39,0.68]
[1764685428825,9.44683772,131.42,131.39,0.68]
[1764685429341,10.15683772,131.42,131.39,7.61090745]
[1764685429522,2.33764582,131.41,131.39,7.61090745]
[1764685430437,2.33764582,131.41,131.38,8.29134615]
[1764685430943,10.81764582,131.41,131.38,8.29134615]
[1764685431247,2.33764582,131.4,131.37,7.61163818]
[1764685431454,2.33764582,131.38,131.35,8.29324704]
[1764685431637,2.33764582,131.39,131.36,0.68]
[1764685432157,10.81764582,131.41,131.36,3.01764582]
[1764685432526,10.81764582,131.41,131.37,0.68]
[1764685432863,2.33764582,131.42,131.37,3.01764582]
[1764685433363,2.33764582,131.42,131.35,35.45630958]
[1764685433364,2.33764582,131.41,131.38,8.29101802]
[1764685434332,2.33764582,131.42,131.39,0.68]
[1764685434832,8.48,131.43,131.39,0.68]
[1764685435149,0.1,131.44,131.39,3.01764582]
[1764685435349,0.1,131.44,131.4,23.91921407]
[1764685435546,0.1,131.44,131.4,24.59921407]
[1764685435731,0.1,131.44,131.41,0.68]
[1764685438157,0.1,131.44,131.41,8.28961732]
[1764685438560,0.1,131.44,131.42,0.68]
[1764685439659,0.1,131.44,131.42,8.28911304]
[1764685439969,2.43764582,131.44,131.42,8.28911304]
[1764685440868,0.1,131.44,131.41,8.28977094]
[1764685441040,2.43764582,131.44,131.41,8.28977094]
[1764685441242,0.1,131.44,131.41,8.28977094]
[1764685441442,2.43764582,131.44,131.41,8.28977094]
[1764685441738,3.04764582,131.43,131.41,7.60977094]
[1764685441940,10.81764582,131.42,131.39,48.49042284]
[1764685442145,2.33764582,131.41,131.39,8.29042284]
[1764685442461,2.33764582,131.41,131.39,7.61042284]
[1764685442842,10.81764582,131.42,131.4,0.68]
[1764685443041,8.58,131.44,131.4,0.68]
[1764685443354,2.43764582,131.44,131.4,0.68]
[1764685443662,3.14764582,131.44,131.39,28.65539189]
[1764685444156,0.1,131.44,131.4,18.64650982]
[1764685444334,0.1,131.44,131.4,16.308864]
[1764685444964,2.43764582,131.44,131.4,16.308864]
[1764685445160,2.43764582,131.44,131.41,26.6341983]
[1764685445359,0.1,131.44,131.41,26.6341983]
[1764685445655,0.1,131.44,131.41,27.3141983]
[1764685445861,2.43764582,131.44,131.41,27.3141983]
[1764685446172,2.43764582,131.44,131.41,26.6341983]
[1764685446469,2.43764582,131.44,131.43,7.60861294]
[1764685447544,2.43764582,131.44,131.42,7.6091919]
[1764685448362,0.1,131.44,131.43,0.68]
[1764685448545,0.1,131.44,131.42,8.2891919]
[1764685449638,0.1,131.44,131.42,7.6091919]
[1764685449842,0.1,131.44,131.42,8.2891919]
[1764685450969,0.81,131.44,131.42,7.6091919]
[1764685451177,0.81,131.44,131.41,47.80950372]
[1764685452579,2.33764582,131.42,131.41,47.80950372]
[1764685452897,2.33764582,131.43,131.41,47.80973138]
[1764685454377,0.65,131.42,131.41,47.80973138]
[1764685454576,0.65,131.42,131.41,40.2]
[1764685455075,2.98764582,131.43,131.41,40.2]
[1764685455682,2.33764582,131.43,131.41,48.46977094]